[Event "Bangabandhu Premier Div League 2022"]
[Site "Dhaka"]
[Date "2022.12.06"]
[Round "7.7"]
[White "Mitrabha, Guha"]
[Black "Harsha Bharathakoti"]
[Result "0-1"]
[ECO "D30"]
[WhiteElo "2474"]
[BlackElo "2582"]
[Annotator "TA"]
[PlyCount "100"]
[EventDate "2022.11.30"]
[EventType "team-tourn"]
[EventCountry "BAN"]
[SourceTitle "playchess.com"]
[Source "ChessBase"]
[SourceQuality "1"]
[TimeControl "40/5400+30:1800+30"]

{[%evp 9,100,24,26,21,35,27,39,12,13,-22,-11,-58,-39,-41,-48,-55,-39,-38,-38,-41,-35,-46,-35,-81,-62,-145,-183,-172,-151,-162,-155,-143,-90,-284,-107,-104,-50,-176,-133,-127,-112,-105,-91,-155,-159,-214,-212,-218,-233,-202,-204,-341,-195,-196,-190,-189,-186,-190,-188,-193,-191,-194,-170,-208,-200,-202,-200,-272,-194,-274,-157,-751,-743,-691,-677,-1648,-1048,-6203,-5743,-29960,-29961,-5641,-5431,-4835,-4835,-29978,-29977,-29981,-29981,-29981,-29982,-29981,-29982]} 1. d4 {[%emt 0:00:10]} d5 {[%emt 0:00:25]} 2. c4 {[%emt 0:00:17]} e6 {[%emt 0:00:32]} 3. Nf3 {[%emt 0:00:17]} c6 {[%emt 0:00:25]} 4. Nbd2 {[%emt 0:00:52]} f5 {[%emt 0:00:40]} 5. g3 {[%emt 0:05:08]} Nd7 {[%emt 0:00:50]} 6. Bg2 {[%emt 0:00:30] D30: Queen's Gambit Declined: Systems without Nc3.} Nh6 $5 {[%emt 0:00:55][%mdl 4] A promising side line.} 7. b3 {[%emt 0:01:03]} Nf7 {[%emt 0:02:42]} 8. O-O {[%emt 0:01:50] [#] White is slightly better.} g5 $146 {[%emt 0:01:38]} ({Predecessor:} 8... Bd6 9. Ne1 O-O 10. Nd3 Qe7 11. Bb2 b6 12. f3 Bb7 13. e4 Rfe8 14. e5 Ba3 15. Bxa3 Qxa3 {1-0 (42) Arencibia Rodriguez,W (2480)-Hernandez Guerrero,Y (2150) Alcobendas 1994}) 9. Ne1 {[%emt 0:06:09]} h5 {[%emt 0:05:41]} 10. f4 {[%emt 0:15:40]} (10. Nd3 $11 {should be considered.}) 10... h4 {[%emt 0:13:14]} 11. Ndf3 {[%emt 0:06:36][%cal Rf3g5]} hxg3 {[%emt 0:12:25]} 12. hxg3 {[%emt 0:00:08][%cal Rf4g5]} gxf4 {[%emt 0:17:25]} 13. Bxf4 {[%emt 0:01:41]} Bd6 {[%emt 0:00:07]} 14. Qc1 {[%emt 0:07:52]} Rg8 {[%emt 0:02:27]} (14... e5 15. dxe5 Qb6+ 16. e3 Ndxe5 17. Nxe5 Bxe5 18. Bxe5 Nxe5 19. Qc3 $16 (19. cxd5 cxd5 20. Qc3 Nf7 $16)) 15. Nd3 {[%emt 0:00:54]} Qe7 {[%emt 0:08:12]} 16. Qe3 {[%emt 0:10:59]} (16. Nfe5 $15) 16... Bxf4 $17 {[%emt 0:07:16]} 17. gxf4 {[%emt 0:01:09]} ({White should play} 17. Nxf4 $15 Nf6 18. Nh4) 17... Nf6 $1 {[%emt 0:00:58]} 18. cxd5 {[%emt 0:00:18]} Ng4 {[%emt 0:01:48]} (18... exd5 19. Qxe7+ Kxe7 20. Nfe5 $15) 19. Qd2 {[%emt 0:00:33]} exd5 {[%emt 0:00:05]} 20. Nde5 {[%emt 0:02:22]} Nf6 {[%emt 0:07:51]} (20... Bd7 $142 21. a3 O-O-O) 21. Qe3 $2 {[%emt 0:13:28]} (21. Nxf7 $17 Ne4 22. Qe3 Kxf7 23. Ng5+ Nxg5 24. Qxe7+ Kxe7 25. fxg5) 21... Ne4 $2 {[%emt 0:03:19]} (21... Rg3 $19 {and Black stays clearly on top.} 22. Qc1 Nxe5 23. fxe5 Ne4) 22. Nxf7 {[%emt 0:02:28]} Kxf7 {[%emt 0:00:03]} (22... Qxf7 $17 23. Ng5 Qf6) 23. Ne5+ {[%emt 0:00:32]} (23. Ng5+ $1 $15 Nxg5 24. Qxe7+ Kxe7 25. fxg5) 23... Ke8 {[%emt 0:02:20] ...Qg7 is the strong threat.} 24. Kh2 {[%emt 0:02:03]} Qh4+ {[%emt 0:03:20]} 25. Qh3 {[%emt 0:00:43]} Qf6 {[%emt 0:00:19] Black is more active.} 26. Qh5+ {[%emt 0:00:54] [#]} (26. Bxe4 $2 fxe4 27. Qh5+ Ke7 $19) (26. Qe3 $142) 26... Ke7 $1 {[%emt 0:02:12] aiming for ...Be6.} 27. Rf3 {[%emt 0:16:26]} (27. Bh3 $17 Be6 28. Rg1 (28. Qh7+ $2 Rg7 $19)) 27... Be6 $19 {[%emt 0:00:24] White must now prevent ...Rh8. Dancing on a razor blade.} (27... Qg7 28. Bh1 $15) 28. Rh3 {[%emt 0:00:43] [#]} Nf2 $1 {[%emt 0:04:14]} (28... Qg7 29. Bf3 $11 (29. Qh7 Nf6 $11)) 29. Rh4 {[%emt 0:00:21]} (29. Qh7+ $2 Rg7 30. Qh6 Nxh3 31. Qxf6+ Kxf6 $19) 29... Ng4+ {[%emt 0:00:07]} (29... Qg7 30. Qh7 $11) 30. Kg1 {[%emt 0:02:28]} (30. Nxg4 {was called for.} Rxg4 31. Rxg4) 30... Rh8 {[%emt 0:01:19]} (30... Rg7 $142 {Threatens to win with ...Bf7.} 31. Rxg4 fxg4) 31. Qg5 {[%emt 0:00:49]} Qxg5 $40 {[%emt 0:00:48][%mdl 128] Black has strong attack.} ({Worse is} 31... Rxh4 32. Qxh4 Qxh4 33. Ng6+ Kf6 34. Nxh4 $15) 32. fxg5 {[%emt 0:00:02]} Nxe5 {[%emt 0:00:05]} ({Inferior is} 32... Rxh4 33. Ng6+ Kf7 34. Nxh4 $17) 33. Rxh8 {[%emt 0:00:03]} Rxh8 {[%emt 0:00:03]} 34. dxe5 {[%emt 0:00:04][%mdl 4096] Endgame KRB-KRB} Bf7 {[%emt 0:01:59]} ({Stronger than} 34... Rg8 35. Kf2 $17) 35. Kf2 {[%emt 0:00:02]} Ke6 {[%emt 0:00:52]} 36. Bf3 {[%emt 0:00:54]} Kxe5 {[%emt 0:00:29]} 37. Rg1 {[%emt 0:00:11]} Bg6 {[%emt 0:00:17]} 38. e3 {[%emt 0:00:25]} Rh7 {[%emt 0:01:11]} 39. b4 {[%emt 0:00:17]} (39. Kg3 {might work better.}) 39... Rh2+ {[%emt 0:00:31]} (39... f4 $19 40. exf4+ Kxf4 41. Rg4+ Ke5) 40. Rg2 {[%emt 0:00:15]} (40. Kg3 $17 Rxa2 41. Rh1) 40... Rxg2+ {[%emt 0:00:29]} 41. Bxg2 {[%emt 0:30:12] KB-KB} b6 {[%emt 0:07:16][%cal Bb7b6,Bb6c5,Bc5c4,Bc4c3][%mdl 32]} 42. a3 {[%emt 0:00:00]} c5 {[%emt 0:02:10] Hoping for ...c4.} 43. bxc5 {[%emt 0:00:00]} bxc5 {[%emt 0:00:03] ( -> ...c4)} 44. Bf3 {[%emt 0:00:00]} d4 {[%emt 0:04:41]} 45. Be2 {[%emt 0:00:00]} dxe3+ {[%emt 0:04:02]} 46. Kxe3 {[%emt 0:00:00]} f4+ {[%emt 0:00:03]} 47. Kd2 {[%emt 0:00:00]} Kd4 {[%emt 0:05:57] Black mates.} 48. Bg4 {[%emt 0:00:00]} c4 {[%emt 0:00:04]} 49. Ke2 {[%emt 0:00:00]} c3 {[%emt 0:03:04]} 50. Bf3 {[%emt 0:00:00]} Bd3+ {[%emt 0:00:05] Weighted Error Value: White=0.83/Black=0.15 (very precise)} 0-1

[Event "Bangabandhu Premier Div League 2022"]
[Site "Dhaka"]
[Date "2022.12.06"]
[Round "7.7"]
[White "Rahman, Syed Mahfuzur"]
[Black "Sankalan Shah"]
[Result "1-0"]
[ECO "E63"]
[WhiteElo "2130"]
[BlackElo "2218"]
[Annotator "TA"]
[PlyCount "175"]
[EventDate "2022.12.01"]
[EventCountry "BAN"]
[SourceTitle "playchess.com"]
[Source "ChessBase"]
[SourceQuality "1"]
[TimeControl "40/5400+30:1800+30"]

{[%evp 20,175,38,-6,18,18,18,18,22,0,11,8,9,11,18,0,22,11,55,47,61,0,28,41,42,29,18,23,25,25,25,23,24,34,49,11,7,14,56,63,203,91,72,85,84,77,120,122,132,127,127,132,120,113,176,128,137,119,154,19,1585,0,0,-3,0,0,0,0,0,0,0,0,0,0,0,-2,-2,-2,-2,-2,-2,-8,-2,-2,-2,-2,-2,-2,0,-41,-41,-41,-41,-41,-41,-41,-2,-2,0,-41,-41,-41,-41,-55,-2,-2,-2,-2,-2,-2,-2,-2,-2,-21,-21,-21,-21,-21,-21,-41,0,-41,0,0,0,0,0,-2,0,0,0,-2,-2,-41,-21,-21,0,0,0,-21,0,-21,0,0,0,0,0,0,0,0,0,0,0,0,0,0,0,0]} 1. d4 {[%emt 0:00:58]} Nf6 {[%emt 1:31:00]} 2. c4 {[%emt 1:30:32]} g6 {[%emt 0:00:00]} 3. Nf3 {[%emt 0:00:00]} Bg7 {[%emt 0:00:00]} 4. g3 {[%emt 0:00:00]} O-O {[%emt 0:00:00]} 5. Bg2 {[%emt 0:01:30]} d6 {[%emt 0:02:00]} 6. O-O {[%emt 0:00:30]} Nc6 {[%emt 0:00:30]} 7. Nc3 {[%emt 0:00:00]} a6 8. h3 {[%emt 0:01:00]} Rb8 {[%emt 0:01:00]} 9. Bg5 {[%emt 0:00:30]} b5 {[%emt 0:00:30]} 10. cxb5 {[%emt 0:00:00]} axb5 {[%emt 0:00:30]} 11. Rc1 {[%emt 0:01:00]} Bd7 {[%emt 0:00:00] E63: King's Indian: Fianchetto: Panno Variation with 7...a6.} (11... b4 $5 {[%cal Rb4c3]} 12. Bxf6 exf6 $11) 12. d5 Na5 {[%emt 0:01:00]} 13. b4 {[%emt 0:00:00]} Nc4 {[%emt 0:00:00]} 14. Nd2 h6 {[%emt 0:01:00]} 15. Bxf6 {[%emt 0:00:00]} Bxf6 {[%emt 0:00:30]} 16. Nce4 {[%emt 0:00:00] [#]} Bg7 $146 {[%emt 0:00:00]} ({Predecessor:} 16... Nxd2 17. Nxf6+ exf6 18. Qxd2 Kg7 19. Rc3 Rb7 20. Rfc1 Ra7 21. R1c2 Re8 22. Qc1 Bf5 {½-½ (30) Horvath,M (2283)-Pinter,E (2364) Slovakia 2003}) 17. Nxc4 {[%emt 0:00:00]} bxc4 18. Rxc4 {[%emt 0:03:30]} Bb5 {[%emt 0:00:00] This pair of bishops is nice.} (18... e6 $5 {[%cal Re6d5]} 19. Nc3 exd5 20. Bxd5 Bxh3 $11) 19. Rc1 Ra8 {[%emt 0:02:00] Inhibits a4.} 20. Qc2 {[%emt 0:01:00]} (20. Nc3 $1 $14 Bxc3 21. Rxc3) 20... Ra7 {[%emt 0:00:30]} 21. Nc3 {[%emt 0:00:30]} Bd7 {[%emt 0:00:30]} 22. a4 {[%emt 0:00:30]} Qb8 {[%emt 0:00:30]} 23. b5 {[%emt 0:00:30]} Bxc3 {[%emt 0:00:00][%mdl 64] Remove Defender} 24. Qxc3 {[%emt 0:00:30]} Rxa4 {[%emt 0:00:00]} 25. Qxc7 {[%emt 0:00:30]} Ra7 {[%emt 0:01:30]} 26. Qc3 {[%emt 0:00:30]} Bxb5 {[%emt 0:00:00]} 27. Rb1 Rb7 {[%emt 0:01:00]} 28. Qe3 {[%emt 0:01:00]} Kh7 {[%emt 0:00:30]} 29. Rb4 {[%emt 0:00:30] And now Rfb1 would win.} Ba6 {[%emt 0:00:30] [#]} (29... Kg7 $14) 30. Ra4 {[%emt 0:00:30]} (30. Rh4 $1 $18 {and the rest is easy.} h5 31. Be4) 30... Rb3 $16 {[%emt 0:00:00]} 31. Qxe7 {[%emt 0:00:00]} Rb7 {[%emt 0:00:00]} 32. Qe3 {White is much more active.} Rb3 {[%emt 0:00:00]} 33. Qe4 {[%emt 0:00:00]} Bb5 {[%emt 0:00:19] [#]} 34. Ra2 Re8 {[%emt 0:02:11]} 35. Qf4 {[%emt 0:02:30]} Kg7 {[%emt 0:00:30]} 36. Qd4+ {[%emt 0:00:00]} Kh7 {[%emt 0:00:00]} (36... Kg8 $16 {was called for.}) 37. Ra7 {[%emt 0:00:00]} (37. Be4 $18) 37... Kg8 {[%emt 0:01:00]} 38. Rfa1 {[%emt 0:01:30] Black must now prevent Be4.} Bxe2 {[%emt 0:00:30]} 39. Be4 {[%emt 0:00:00] Prevents Rb1+.} (39. Qf6 $16 Rf8 40. Rd7) 39... Qb6 $2 {[%emt 0:00:30][%mdl 8192]} (39... Rb7 $11) 40. Qxb6 $2 {[%emt 0:00:26]} ({White has to play} 40. Qf6 $18 Rxg3+ 41. Bg2 Rxg2+ 42. Kxg2 Bf3+ 43. Qxf3) 40... Rxb6 $11 {[%emt 0:00:30]} 41. Bg2 {[%emt 0:31:04]} Bd3 {[%emt 0:30:30]} 42. Rd7 {[%emt 0:00:30]} Bf5 {[%emt 0:00:30]} 43. Rc7 {[%emt 0:00:00]} g5 {[%emt 0:00:30]} 44. g4 {[%emt 0:01:00]} Bg6 {[%emt 0:00:30]} 45. Rc6 {[%emt 0:00:30]} Reb8 {[%emt 0:00:30]} 46. Re1 {[%emt 0:00:30]} Kf8 {[%emt 0:00:30]} 47. Kh2 {[%emt 0:00:00]} h5 {[%emt 0:00:30]} 48. gxh5 {[%emt 0:01:00]} Bxh5 {[%emt 0:00:30]} 49. Be4 {[%emt 0:00:00]} Kg7 50. h4 {[%emt 0:01:00]} gxh4 {[%emt 0:00:00]} 51. Kh3 {[%emt 0:00:30]} Bg6 {[%emt 0:01:30]} 52. Bxg6 {[%emt 0:00:00]} Kxg6 {[%emt 0:00:00]} 53. Kxh4 {[%emt 0:01:00][%mdl 4096] Endgame KRR-KRR} Kf5 {[%emt 0:00:00]} 54. Rc7 {[%emt 0:00:00]} Rb4+ 55. Kh3 {[%emt 0:01:00]} Rh8+ {[%emt 0:00:28]} 56. Kg3 {[%emt 0:00:30]} Rg4+ {[%emt 0:01:00]} 57. Kf3 {[%emt 0:00:00]} Rf4+ {[%emt 0:01:32]} 58. Kg2 {[%emt 0:01:00]} Rg4+ {[%emt 0:00:00]} 59. Kf3 {[%emt 0:00:00]} Rh3+ {[%emt 0:00:00]} 60. Ke2 {[%emt 0:00:00]} Re4+ {[%emt 0:00:21]} 61. Kd2 {[%emt 0:01:30]} Rxe1 {[%emt 0:00:00]} ({Black should play} 61... Rd4+ $15 62. Kc2 f6) 62. Kxe1 $15 {[%emt 0:00:00] KR-KR} f6 {[%emt 0:02:09]} 63. Ke2 {[%emt 0:00:00] Prevents Rd3.} Ke5 {[%emt 0:00:00]} 64. Rf7 {[%emt 0:00:00]} Rh6 {[%emt 0:00:00]} 65. Ke3 Kxd5 {[%emt 0:01:30]} 66. Rf8 {[%emt 0:02:30]} Ke6 {[%emt 0:00:00]} 67. Re8+ {[%emt 0:00:30]} Kf7 {[%emt 0:00:00]} 68. Rd8 {[%emt 0:00:30]} Ke7 {[%emt 0:00:00]} 69. Ra8 Rh5 {[%emt 0:02:00]} 70. f3 {[%emt 0:01:00]} Rb5 {[%emt 0:00:00]} 71. Ke4 Rb4+ {[%emt 0:01:00]} 72. Kf5 {[%emt 0:00:15]} Rb5+ {[%emt 0:00:30]} 73. Ke4 {[%emt 0:01:15]} Rb1 {[%emt 0:00:00]} 74. Kf5 {[%emt 0:00:00]} Rb5+ {[%emt 0:00:09]} 75. Ke4 {[%emt 0:00:00]} Re5+ {[%emt 0:01:21]} 76. Kd4 {[%emt 0:01:30]} f5 {[%emt 0:00:30]} 77. Rh8 {[%emt 0:00:30] The position is equal.} Ke6 {[%emt 0:00:30]} 78. Rh6+ {[%emt 0:00:00]} Kd7 {[%emt 0:00:30]} 79. Rh8 {[%emt 0:00:17]} Ra5 80. Rh7+ {[%emt 0:01:13]} Kc6 {[%emt 0:00:00]} (80... Ke6 $5 {[%cal Ra5a4]}) 81. Rf7 $1 {[%emt 0:00:30]} Re5 {[%emt 0:01:30]} 82. Kd3 {[%emt 0:00:00]} Kc5 {[%emt 0:00:00]} 83. Rf8 {[%emt 0:00:02]} Kc6 {[%emt 0:00:26]} 84. Rf7 {[%emt 0:00:04]} Kc5 {[%emt 0:00:17]} 85. Rf8 Kc6 {[%emt 0:00:45]} 86. Rf7 Ra5 {[%emt 0:01:02]} 87. Kd4 {[%emt 0:01:49]} Ra4+ {[%emt 0:00:30]} 88. Ke3 {[%emt 0:01:35][%mdl 32768] Weighted Error Value: White=0.24 (precise) /Black=0.10 (very precise) . Sensor Board Error (Ke4/e5)?} 1-0

[Event "Bangabandhu Premier Div League 2022"]
[Site "Dhaka"]
[Date "2022.12.06"]
[Round "7.8"]
[White "Mehdi Hasan Parag"]
[Black "Chatterjee, Debaraj"]
[Result "1/2-1/2"]
[ECO "B81"]
[WhiteElo "2185"]
[BlackElo "2196"]
[Annotator "TA"]
[PlyCount "118"]
[EventDate "2022.11.30"]
[EventType "team-tourn"]
[EventCountry "BAN"]
[SourceTitle "playchess.com"]
[Source "ChessBase"]
[SourceQuality "1"]
[TimeControl "40/5400+30:1800+30"]

{[%evp 12,118,23,7,28,31,36,30,31,24,42,37,45,13,16,27,63,37,49,39,60,43,104,103,122,111,154,152,160,145,143,-61,-35,-41,-59,-97,-91,-90,-97,-100,-94,-137,-118,-127,-135,-214,-143,-231,-109,-89,-100,-99,-61,-83,-35,-30,-31,-36,0,0,0,-18,0,0,0,0,0,0,2,0,0,-39,0,-102,0,0,0,0,0,0,8,8,8,8,8,8,8,8,8,8,8,8,8,8,8,8,8,8,8,8,8,0,0,0,0,0,0,0,0]} 1. e4 {[%emt 0:00:12]} c5 {[%emt 0:02:18]} 2. Nf3 {[%emt 0:00:09]} d6 {[%emt 0:00:33]} 3. d4 {[%emt 0:00:06]} cxd4 {[%emt 0:00:07]} 4. Nxd4 {[%emt 0:00:02]} Nf6 {[%emt 0:00:03]} 5. Nc3 {[%emt 0:00:20]} a6 {[%emt 0:00:03]} 6. h3 {[%emt 0:00:11]} e6 {[%emt 0:06:10]} 7. g4 {[%emt 0:00:13][%cal Bg2g4,Bg4g5][%mdl 32]} Be7 {[%emt 0:00:20] B81: Sicilian Scheveningen: Keres Attack.} 8. g5 {[%emt 0:00:19]} Nfd7 {[%emt 0:00:04]} 9. Be3 {[%emt 0:00:32]} b5 {[%emt 0:00:13] White has an edge.} (9... Bxg5 10. Nxe6 $1 fxe6 11. Qh5+ (11. Qxd6 $2 Qe7 $19) 11... g6 12. Qxg5 $16) 10. a3 {[%emt 0:00:16]} Bb7 {[%emt 0:00:11]} (10... Bxg5 11. Nxe6 $1 {[%mdl 512]} fxe6 12. Qh5+ (12. Qxd6 $2 Qe7 $19) 12... g6 13. Qxg5 $16) 11. h4 {[%emt 0:00:37]} Nc6 {[%emt 0:00:22]} 12. Rg1 {[%emt 0:00:36] 12.Nxc6 is setting a new trend.} Rc8 {[%emt 0:05:30]} 13. Nxc6 {[%emt 0:01:07]} Bxc6 {[%emt 0:01:47]} 14. Qd4 {[%emt 0:00:33]} O-O $1 {[%emt 0:13:12]} 15. h5 {[%emt 0:01:44] [#]} Rb8 $146 {[%emt 0:20:12]} ({Predecessor:} 15... Ne5) 16. Be2 {[%emt 0:03:47]} g6 {[%emt 0:09:54]} (16... Qb6 $14) 17. O-O-O $16 {[%emt 0:01:36] White has more active pieces.} (17. h6 $6 e5 18. Qd2 f6 $11) 17... e5 {[%emt 0:02:27] Against f4} 18. Qd2 {[%emt 0:00:26]} b4 {[%emt 0:03:49]} 19. axb4 {[%emt 0:01:35]} Rxb4 {[%emt 0:00:06]} 20. hxg6 {[%emt 0:01:27]} (20. Bxa6 Qa5 21. Qd3 Ra8 $17) 20... hxg6 {[%emt 0:01:14]} 21. f3 $2 {[%emt 0:05:17]} (21. Bxa6 Qa5 22. Qd3 Ra8 $17) (21. Nd5 $16 Ra4 22. b3 (22. Nxe7+ Qxe7 23. Kb1 Qe6 $16) 22... Bxd5 23. Qxd5 (23. bxa4 Bxe4 24. f3 Bb7 $16)) 21... Qa5 $40 {[%emt 0:15:32][%mdl 128] ( -> ...Qa1+). Black mounts an attack.} 22. Nb1 {[%emt 0:19:52][%cal Bc3b1,Bb1a3,Ba3c4][%mdl 32]} Rfb8 $1 {[%emt 0:08:07]} 23. b3 {[%emt 0:03:30] Prevents d5.} Nc5 {[%emt 0:06:05]} (23... Qa1 24. Qc3 Qxc3 25. Nxc3 $14) 24. Bxc5 {[%emt 0:04:42]} (24. Qc3 $6 Nxb3+ 25. cxb3 Qa2 $11) 24... Qxc5 {[%emt 0:00:03]} (24... dxc5 25. Bc4 $16 (25. Qc3 Qc7 $11)) 25. Qc3 {[%emt 0:01:51]} Qb6 {[%emt 0:00:44][%cal Od6d5]} 26. Na3 {[%emt 0:07:27] Inhibits d5.} Rd4 {[%emt 0:00:18]} 27. Nc4 {[%emt 0:07:24] Inhibits d5.} (27. Rxd4 $2 exd4 28. Qe1 d5 $19) 27... Qc5 {[%emt 0:00:04][%cal Oa6a5]} ({Worse is} 27... Rxd1+ 28. Rxd1 Qf2 29. Qe1 (29. Qd2 Bb5 $15) 29... Bxg5+ 30. Kb2 Qxe1 31. Rxe1 $11) 28. Rxd4 {[%emt 0:07:59]} (28. Kb1 $17) 28... exd4 $19 {[%emt 0:00:03]} 29. Qa5 {[%emt 0:06:14] [#]} (29. Qe1 $17) 29... Bb5 {[%emt 0:00:07]} (29... Rb5 $1 $19 {[%cal Rb5a5] and Black stays clearly on top.} 30. Qe1 a5) 30. Bd3 $17 {[%emt 0:08:13]} Bxg5+ {[%emt 0:00:04]} 31. Kb2 {[%emt 0:01:48]} Bf6 {[%emt 0:02:38]} ({Don't do} 31... Bxc4 32. Qxc5 dxc5 33. Bxc4 $14) (31... Kg7 {feels hotter.} 32. Rh1 Bd8 33. Qa3 Bc7) 32. Qa3 {[%emt 0:02:07][%mdl 64]} Kg7 {[%emt 0:00:56]} ({Of course not} 32... Bxc4 $6 33. Qxc5 dxc5 34. Bxc4 $11) (32... Qxa3+ $17 33. Kxa3 Kg7) 33. Qxc5 $15 {[%emt 0:00:51]} dxc5 {[%emt 0:00:05]} 34. e5 {[%emt 0:00:38]} Be7 {[%emt 0:01:48]} 35. f4 {[%emt 0:00:12]} Kh6 {[%emt 0:01:34]} 36. Kc1 {[%emt 0:00:54]} Rh8 {[%emt 0:00:37]} 37. Kd2 {[%emt 0:04:25]} Rd8 {[%emt 0:00:50]} 38. Ke2 {[%emt 0:00:45]} Rb8 {[%emt 0:00:17]} 39. Nd2 {[%emt 0:01:20]} Rc8 {[%emt 0:00:29]} 40. Bc4 {[%emt 0:00:39]} (40. Ra1 {simplifies} Kg7 41. Bxb5 axb5 42. Ra7) 40... f5 {[%emt 0:00:56]} 41. Kd3 {[%emt 0:32:25]} Kg7 {[%emt 0:02:29]} (41... Bc6 {simplifies} 42. Ke2 a5 43. Bd3 a4) 42. Rh1 {[%emt 0:00:00] [#]} (42. Bxb5 $11 axb5 43. Ra1) 42... Rh8 {[%emt 0:06:15]} (42... Bc6 $1 $17 {[%cal Rc6h1]} 43. Ra1 Bb7) 43. Rxh8 $11 {[%emt 0:00:00] The position is equal.} Kxh8 {[%emt 0:00:02]} 44. Bxb5 {[%emt 0:00:00]} axb5 {[%emt 0:00:04][%mdl 4096] Endgame KB-KN} 45. Nf3 {[%emt 0:00:00][%cal Ob3b4]} Kg7 {[%emt 0:13:05] Against b4} 46. b4 {[%emt 0:00:00] aiming for bxc5.} c4+ {[%emt 0:00:35]} 47. Kxd4 {[%emt 0:00:00]} Bxb4 {[%emt 0:00:08]} 48. Kd5 {[%emt 0:00:00] Black must now prevent Kc6.} Ba3 {[%emt 0:02:16]} 49. Nd4 {[%emt 0:00:00]} Kf7 $1 {[%emt 0:04:41]} 50. Kc6 {[%emt 0:00:00]} b4 {[%emt 0:01:35]} 51. Kd7 {[%emt 0:00:00]} b3 {[%emt 0:01:02]} 52. cxb3 {[%emt 0:00:00]} cxb3 {[%emt 0:00:01]} 53. Nxb3 {[%emt 0:00:00]} g5 {[%emt 0:00:17]} 54. fxg5 {[%emt 0:00:31] White threatens Nd4 and mate.} Kg6 {[%emt 0:00:06]} 55. Nd4 {[%emt 0:03:59] Intending Nf3 and mate.} Kxg5 {[%emt 0:00:04]} 56. Nb5 {[%emt 0:09:39]} Bb4 {[%emt 0:05:58]} 57. Nd6 {[%emt 0:00:00]} f4 {[%emt 0:00:00][%cal Bf5f4,Bf4f3][%mdl 32]} 58. e6 {[%emt 0:00:00] Threatening mate with e7.} Bxd6 {[%emt 0:00:00]} 59. Kxd6 {[%emt 0:00:00] e7 would kill now.} f3 $1 {[%emt 0:00:00] What a bad dream for Black.   Weighted Error Value: White=0.17 (very precise) /Black=0.15 (very precise)} 1/2-1/2